[Event "Titled Tuesday Blitz December 7 2021"]
[White "Rodchenkov, Sergey D."]
[Black "Zhigalko, Sergei"]
[WhiteFideId "4168712"]
[BlackFideId "13502956"]
[WhiteElo "2306"]
[BlackElo "2662"]
[Result "0-1"]
[Round "03"]
[TimeControl "180+1"]
[Date "2021.12.07"]
[WhiteClock "0:00:01"]
[BlackClock "0:00:13"]

1. e4 {[%clk 0:03:00]}  c5 {[%clk 0:03:00]} 2. Nf3 {[%clk 0:03:01]}  Nc6 {[%clk 0:02:59]} 3. d4 {[%clk 0:03:01]}  cxd4 {[%clk 0:03:00]} 4. Nxd4 {[%clk 0:03:01]}  Nf6 {[%clk 0:03:01]} 5. Nc3 {[%clk 0:03:02]}  e5 {[%clk 0:03:01]} 6. Ndb5 {[%clk 0:03:02]}  d6 {[%clk 0:03:01]} 7. Nd5 {[%clk 0:03:03]}  Nxd5 {[%clk 0:03:01]} 8. exd5 {[%clk 0:03:04]}  Nb8 {[%clk 0:03:02]} 9. a4 {[%clk 0:03:02]}  Be7 {[%clk 0:03:02]} 10. Be2 {[%clk 0:03:02]}  O-O {[%clk 0:02:37]} 11. O-O {[%clk 0:03:02]}  Nd7 {[%clk 0:02:34]} 12. Bd2 {[%clk 0:03:00]}  f5 {[%clk 0:02:26]} 13. f3 {[%clk 0:02:38]}  Nf6 {[%clk 0:02:10]} 14. c4 {[%clk 0:02:33]}  Bd7 {[%clk 0:01:47]} 15. Nc3 {[%clk 0:01:37]}  Rc8 {[%clk 0:01:35]} 16. a5 {[%clk 0:01:29]}  Kh8 {[%clk 0:01:24]} 17. Kh1 {[%clk 0:01:28]}  Qc7 {[%clk 0:01:12]} 18. Be3 {[%clk 0:01:21]}  Qb8 {[%clk 0:01:05]} 19. Bf2 {[%clk 0:00:48]}  g5 {[%clk 0:00:52]} 20. Qd2 {[%clk 0:00:46]}  Rg8 {[%clk 0:00:52]} 21. Rfd1 {[%clk 0:00:30]}  Rg6 {[%clk 0:00:51]} 22. c5 {[%clk 0:00:26]}  dxc5 {[%clk 0:00:47]} 23. d6 {[%clk 0:00:22]}  Bf8 {[%clk 0:00:47]} 24. a6 {[%clk 0:00:20]}  b6 {[%clk 0:00:46]} 25. Bb5 {[%clk 0:00:18]}  Rd8 {[%clk 0:00:44]} 26. Bg3 {[%clk 0:00:16]}  f4 {[%clk 0:00:39]} 27. Bf2 {[%clk 0:00:16]}  e4 {[%clk 0:00:36]} 28. fxe4 {[%clk 0:00:13]}  Nxe4 {[%clk 0:00:28]} 29. Nxe4 {[%clk 0:00:10]}  Bxb5 {[%clk 0:00:28]} 30. b4 {[%clk 0:00:06]}  Bc6 {[%clk 0:00:27]} 31. Qd3 {[%clk 0:00:05]}  Qa8 {[%clk 0:00:14]} 32. Nd2 {[%clk 0:00:02]}  Bxg2+ {[%clk 0:00:12]} 33. Kg1 {[%clk 0:00:03]}  Bh1 {[%clk 0:00:13]} 34. Qd4+ {[%clk 0:00:01]}  cxd4 {[%clk 0:00:13]} 0-1


[Site "https://www.chess.com"]

[Event "Titled Tuesday Blitz December 7 2021"]
[White "Romero Ruscalleda, Josep"]
[Black "Shyaamnikhil P"]
[WhiteFideId "2231859"]
[BlackFideId "5024218"]
[WhiteElo "2316"]
[BlackElo "2300"]
[Result "0-1"]
[Round "03"]
[TimeControl "180+1"]
[Date "2021.12.07"]
[WhiteClock "0:00:01"]
[BlackClock "0:00:18"]

1. e4 {[%clk 0:03:00]}  c5 {[%clk 0:02:59]} 2. c3 {[%clk 0:03:00]}  e6 {[%clk 0:02:59]} 3. d4 {[%clk 0:03:00]}  Nf6 {[%clk 0:02:59]} 4. e5 {[%clk 0:02:59]}  Nd5 {[%clk 0:02:59]} 5. Nf3 {[%clk 0:02:58]}  cxd4 {[%clk 0:02:59]} 6. cxd4 {[%clk 0:02:58]}  d6 {[%clk 0:02:59]} 7. Bd3 {[%clk 0:02:56]}  Nc6 {[%clk 0:02:57]} 8. a3 {[%clk 0:02:55]}  Be7 {[%clk 0:02:42]} 9. O-O {[%clk 0:02:54]}  O-O {[%clk 0:02:42]} 10. Qe2 {[%clk 0:02:54]}  f5 {[%clk 0:02:41]} 11. exd6 {[%clk 0:02:41]}  Bxd6 {[%clk 0:02:40]} 12. Nc3 {[%clk 0:02:40]}  Nce7 {[%clk 0:02:33]} 13. Re1 {[%clk 0:02:28]}  h6 {[%clk 0:02:28]} 14. Ne5 {[%clk 0:02:22]}  Rf6 {[%clk 0:02:18]} 15. Bc4 {[%clk 0:02:16]}  Nxc3 {[%clk 0:02:13]} 16. bxc3 {[%clk 0:02:15]}  Nd5 {[%clk 0:02:13]} 17. Bd2 {[%clk 0:02:06]}  Bf8 {[%clk 0:01:59]} 18. Bb3 {[%clk 0:02:00]}  b6 {[%clk 0:01:37]} 19. c4 {[%clk 0:01:55]}  Nc7 {[%clk 0:01:37]} 20. Bc3 {[%clk 0:01:54]}  Bb7 {[%clk 0:01:36]} 21. a4 {[%clk 0:01:37]}  f4 {[%clk 0:01:32]} 22. f3 {[%clk 0:01:34]}  Rf5 {[%clk 0:01:31]} 23. a5 {[%clk 0:01:34]}  Bd6 {[%clk 0:01:27]} 24. axb6 {[%clk 0:01:31]}  axb6 {[%clk 0:01:28]} 25. Rxa8 {[%clk 0:01:29]}  Bxa8 {[%clk 0:01:25]} 26. Qa2 {[%clk 0:01:11]}  Qh4 {[%clk 0:01:22]} 27. c5 {[%clk 0:01:06]}  Rxe5 {[%clk 0:01:10]} 28. dxe5 {[%clk 0:00:55]}  Bxc5+ {[%clk 0:01:10]} 29. Kh1 {[%clk 0:00:52]}  Bd5 {[%clk 0:01:10]} 30. Bxd5 {[%clk 0:00:44]}  Nxd5 {[%clk 0:01:11]} 31. Qc2 {[%clk 0:00:21]}  Qf2 {[%clk 0:00:50]} 32. Qxf2 {[%clk 0:00:20]}  Bxf2 {[%clk 0:00:51]} 33. Rc1 {[%clk 0:00:18]}  Be3 {[%clk 0:00:49]} 34. Rc2 {[%clk 0:00:18]}  b5 {[%clk 0:00:49]} 35. Bd2 {[%clk 0:00:18]}  Bd4 {[%clk 0:00:46]} 36. g3 {[%clk 0:00:17]}  fxg3 {[%clk 0:00:39]} 37. hxg3 {[%clk 0:00:17]}  Bxe5 {[%clk 0:00:39]} 38. f4 {[%clk 0:00:15]}  Bf6 {[%clk 0:00:39]} 39. Rc8+ {[%clk 0:00:11]}  Kf7 {[%clk 0:00:39]} 40. Rb8 {[%clk 0:00:11]}  b4 {[%clk 0:00:30]} 41. Bxb4 {[%clk 0:00:12]}  Nxb4 {[%clk 0:00:30]} 42. Rxb4 {[%clk 0:00:11]}  Kg6 {[%clk 0:00:30]} 43. Rb5 {[%clk 0:00:12]}  Bd4 {[%clk 0:00:24]} 44. Kg2 {[%clk 0:00:13]}  Kf6 {[%clk 0:00:24]} 45. Kf3 {[%clk 0:00:14]}  e5 {[%clk 0:00:24]} 46. fxe5+ {[%clk 0:00:13]}  Bxe5 {[%clk 0:00:24]} 47. g4 {[%clk 0:00:13]}  Bd4 {[%clk 0:00:23]} 48. Ke4 {[%clk 0:00:13]}  Bg1 {[%clk 0:00:20]} 49. Rf5+ {[%clk 0:00:13]}  Kg6 {[%clk 0:00:21]} 50. Kd5 {[%clk 0:00:13]}  Be3 {[%clk 0:00:20]} 51. Ke6 {[%clk 0:00:14]}  Bg5 {[%clk 0:00:20]} 52. Ke5 {[%clk 0:00:13]}  Bf6+ {[%clk 0:00:20]} 53. Ke4 {[%clk 0:00:13]}  Bg5 {[%clk 0:00:20]} 54. Kf3 {[%clk 0:00:13]}  Bf6 {[%clk 0:00:21]} 55. Rb5 {[%clk 0:00:13]}  Bg5 {[%clk 0:00:21]} 56. Kg3 {[%clk 0:00:13]}  Bf6 {[%clk 0:00:21]} 57. Kf3 {[%clk 0:00:12]}  Bg5 {[%clk 0:00:22]} 58. Rb6+ {[%clk 0:00:12]}  Bf6 {[%clk 0:00:22]} 59. Kf4 {[%clk 0:00:11]}  Kh7 {[%clk 0:00:22]} 60. Kf5 {[%clk 0:00:11]}  Bd4 {[%clk 0:00:22]} 61. Rd6 {[%clk 0:00:10]}  Bc3 {[%clk 0:00:22]} 62. Rd7 {[%clk 0:00:10]}  Bb2 {[%clk 0:00:21]} 63. Ke6 {[%clk 0:00:09]}  Kg6 {[%clk 0:00:21]} 64. Rd5 {[%clk 0:00:09]}  Bf6 {[%clk 0:00:21]} 65. Rf5 {[%clk 0:00:09]}  Bg5 {[%clk 0:00:21]} 66. Kd5 {[%clk 0:00:08]}  h5 {[%clk 0:00:20]} 67. Ke4 {[%clk 0:00:05]}  hxg4 {[%clk 0:00:20]} 68. Rb5 {[%clk 0:00:05]}  Kh5 {[%clk 0:00:20]} 69. Rb1 {[%clk 0:00:02]}  g6 {[%clk 0:00:18]} 70. Rh1+ {[%clk 0:00:02]}  Bh4 {[%clk 0:00:19]} 71. Kf4 {[%clk 0:00:02]}  g5+ {[%clk 0:00:19]} 72. Ke3 {[%clk 0:00:01]}  Kg6 {[%clk 0:00:18]} 0-1


[Site "https://www.chess.com"]

[Event "Titled Tuesday Blitz December 7 2021"]
[White "Rozhkov, Viacheslav"]
[Black "Khanin, Semen"]
[WhiteFideId "4181484"]
[BlackFideId "4111990"]
[WhiteElo "2324"]
[BlackElo "2442"]
[Result "0-1"]
[Round "03"]
[TimeControl "180+1"]
[Date "2021.12.07"]
[WhiteClock "0:00:18"]
[BlackClock "0:01:34"]

1. e4 {[%clk 0:03:00]}  c5 {[%clk 0:02:59]} 2. Nf3 {[%clk 0:03:00]}  d6 {[%clk 0:02:59]} 3. d4 {[%clk 0:03:01]}  cxd4 {[%clk 0:02:59]} 4. Nxd4 {[%clk 0:03:01]}  Nf6 {[%clk 0:03:00]} 5. Nc3 {[%clk 0:03:02]}  a6 {[%clk 0:03:01]} 6. Be3 {[%clk 0:03:01]}  e5 {[%clk 0:03:00]} 7. Nb3 {[%clk 0:03:01]}  Be6 {[%clk 0:02:59]} 8. f3 {[%clk 0:03:00]}  Nc6 {[%clk 0:02:57]} 9. Qd2 {[%clk 0:02:57]}  Ne7 {[%clk 0:02:57]} 10. O-O-O {[%clk 0:02:42]}  d5 {[%clk 0:02:56]} 11. exd5 {[%clk 0:02:30]}  Nexd5 {[%clk 0:02:41]} 12. Nxd5 {[%clk 0:02:19]}  Nxd5 {[%clk 0:02:38]} 13. c4 {[%clk 0:01:51]}  Nxe3 {[%clk 0:02:38]} 14. Qxe3 {[%clk 0:01:50]}  Qc7 {[%clk 0:02:37]} 15. Kb1 {[%clk 0:01:37]}  Be7 {[%clk 0:02:35]} 16. Re1 {[%clk 0:01:22]}  Rd8 {[%clk 0:02:22]} 17. Bd3 {[%clk 0:00:40]}  a5 {[%clk 0:02:14]} 18. Rc1 {[%clk 0:00:27]}  a4 {[%clk 0:02:12]} 19. Nd2 {[%clk 0:00:27]}  a3 {[%clk 0:02:07]} 20. b3 {[%clk 0:00:26]}  Qd7 {[%clk 0:01:55]} 21. Kc2 {[%clk 0:00:22]}  Bg5 {[%clk 0:01:37]} 22. Qxg5 {[%clk 0:00:18]}  Qxd3+ {[%clk 0:01:36]} 23. Kd1 {[%clk 0:00:18]}  h6 {[%clk 0:01:34]} 0-1


[Site "https://www.chess.com"]

[Event "Titled Tuesday Blitz December 7 2021"]
[White "Rozman, Levy"]
[Black "Yilmaz, Mustafa"]
[WhiteFideId "2039877"]
[BlackFideId "6302718"]
[WhiteElo "2376"]
[BlackElo "2568"]
[Result "0-1"]
[Round "03"]
[TimeControl "180+1"]
[Date "2021.12.07"]
[WhiteClock "0:00:01"]
[BlackClock "0:00:20"]

1. d4 {[%clk 0:03:00]}  Nf6 {[%clk 0:02:59]} 2. c4 {[%clk 0:02:57]}  c5 {[%clk 0:03:00]} 3. d5 {[%clk 0:02:54]}  e6 {[%clk 0:03:00]} 4. Nc3 {[%clk 0:02:53]}  exd5 {[%clk 0:03:01]} 5. cxd5 {[%clk 0:02:54]}  d6 {[%clk 0:03:01]} 6. e4 {[%clk 0:02:49]}  g6 {[%clk 0:03:02]} 7. f4 {[%clk 0:02:46]}  Bg7 {[%clk 0:03:02]} 8. Nf3 {[%clk 0:02:46]}  O-O {[%clk 0:03:01]} 9. Be2 {[%clk 0:02:47]}  Nbd7 {[%clk 0:02:56]} 10. O-O {[%clk 0:02:41]}  Re8 {[%clk 0:02:56]} 11. Qc2 {[%clk 0:02:35]}  Nb6 {[%clk 0:02:07]} 12. h3 {[%clk 0:02:25]}  Nh5 {[%clk 0:02:05]} 13. Re1 {[%clk 0:02:13]}  Ng3 {[%clk 0:02:03]} 14. Bb5 {[%clk 0:02:13]}  Bd7 {[%clk 0:02:01]} 15. Bxd7 {[%clk 0:02:01]}  Qxd7 {[%clk 0:02:02]} 16. Kh2 {[%clk 0:02:01]}  Nh5 {[%clk 0:01:57]} 17. g4 {[%clk 0:01:52]}  Nf6 {[%clk 0:01:56]} 18. f5 {[%clk 0:01:40]}  Qd8 {[%clk 0:01:35]} 19. Bg5 {[%clk 0:01:35]}  Nbd7 {[%clk 0:01:31]} 20. Rad1 {[%clk 0:01:33]}  a6 {[%clk 0:01:32]} 21. a4 {[%clk 0:01:08]}  Rb8 {[%clk 0:01:31]} 22. Bf4 {[%clk 0:01:05]}  Qc7 {[%clk 0:01:20]} 23. Bg3 {[%clk 0:00:55]}  b5 {[%clk 0:01:18]} 24. axb5 {[%clk 0:00:55]}  axb5 {[%clk 0:01:19]} 25. g5 {[%clk 0:00:55]}  Nh5 {[%clk 0:01:17]} 26. f6 {[%clk 0:00:56]}  Nxg3 {[%clk 0:01:14]} 27. Kxg3 {[%clk 0:00:55]}  Bf8 {[%clk 0:01:10]} 28. h4 {[%clk 0:00:47]}  b4 {[%clk 0:01:05]} 29. Ne2 {[%clk 0:00:43]}  b3 {[%clk 0:01:04]} 30. Qc3 {[%clk 0:00:23]}  Rxe4 {[%clk 0:00:57]} 31. Nf4 {[%clk 0:00:23]}  Ra4 {[%clk 0:00:51]} 32. h5 {[%clk 0:00:23]}  Rbb4 {[%clk 0:00:50]} 33. hxg6 {[%clk 0:00:19]}  hxg6 {[%clk 0:00:50]} 34. Ne6 {[%clk 0:00:10]}  Qa5 {[%clk 0:00:48]} 35. Rh1 {[%clk 0:00:04]}  Rg4+ {[%clk 0:00:47]} 36. Kf2 {[%clk 0:00:04]}  Qxc3 {[%clk 0:00:47]} 37. bxc3 {[%clk 0:00:05]}  Ra2+ {[%clk 0:00:22]} 38. Ke3 {[%clk 0:00:05]}  Rgg2 {[%clk 0:00:23]} 39. Rh3 {[%clk 0:00:02]}  Rae2+ {[%clk 0:00:21]} 40. Kf4 {[%clk 0:00:03]}  fxe6 {[%clk 0:00:20]} 41. dxe6 {[%clk 0:00:03]}  Rxe6 {[%clk 0:00:21]} 42. Rdh1 {[%clk 0:00:04]}  d5 {[%clk 0:00:18]} 43. Rh8+ {[%clk 0:00:03]}  Kf7 {[%clk 0:00:19]} 44. R1h7+ {[%clk 0:00:03]}  Ke8 {[%clk 0:00:19]} 45. Rg8 {[%clk 0:00:01]}  Re4# {[%clk 0:00:20]} 0-1


[Site "https://www.chess.com"]

[Event "Titled Tuesday Blitz December 7 2021"]
[White "Saraci, Nderim"]
[Black "Materia, Marco"]
[WhiteFideId "6351921"]
[BlackFideId "45150451"]
[WhiteElo "2479"]
[BlackElo "2576"]
[Result "0-1"]
[Round "03"]
[TimeControl "180+1"]
[Date "2021.12.07"]
[WhiteClock "0:00:05"]
[BlackClock "0:01:35"]

1. d4 {[%clk 0:02:11]}  Nf6 {[%clk 0:02:58]} 2. Bf4 {[%clk 0:02:09]}  d5 {[%clk 0:02:57]} 3. e3 {[%clk 0:02:09]}  c5 {[%clk 0:02:57]} 4. Nd2 {[%clk 0:02:05]}  Nc6 {[%clk 0:02:56]} 5. c3 {[%clk 0:02:06]}  Bg4 {[%clk 0:02:52]} 6. Qb3 {[%clk 0:02:05]}  Qd7 {[%clk 0:02:49]} 7. h3 {[%clk 0:02:05]}  Bf5 {[%clk 0:02:47]} 8. Ngf3 {[%clk 0:01:59]}  c4 {[%clk 0:02:39]} 9. Qd1 {[%clk 0:01:58]}  e6 {[%clk 0:02:37]} 10. b3 {[%clk 0:01:55]}  b5 {[%clk 0:02:37]} 11. a4 {[%clk 0:01:54]}  b4 {[%clk 0:02:34]} 12. bxc4 {[%clk 0:01:11]}  bxc3 {[%clk 0:02:34]} 13. Nb3 {[%clk 0:01:04]}  Bb4 {[%clk 0:02:30]} 14. Qc1 {[%clk 0:00:56]}  Ne4 {[%clk 0:02:15]} 15. Be2 {[%clk 0:00:52]}  c2+ {[%clk 0:02:11]} 16. Nbd2 {[%clk 0:00:50]}  Nc3 {[%clk 0:02:09]} 17. cxd5 {[%clk 0:00:44]}  Qxd5 {[%clk 0:02:07]} 18. Bc4 {[%clk 0:00:39]}  Qd7 {[%clk 0:02:02]} 19. O-O {[%clk 0:00:38]}  O-O {[%clk 0:01:58]} 20. Re1 {[%clk 0:00:33]}  Na5 {[%clk 0:01:55]} 21. Bf1 {[%clk 0:00:28]}  Rac8 {[%clk 0:01:50]} 22. e4 {[%clk 0:00:24]}  Bg6 {[%clk 0:01:50]} 23. Qxc2 {[%clk 0:00:19]}  Ne2+ {[%clk 0:01:49]} 24. Bxe2 {[%clk 0:00:14]}  Rxc2 {[%clk 0:01:49]} 25. Bb5 {[%clk 0:00:13]}  Qd8 {[%clk 0:01:49]} 26. Red1 {[%clk 0:00:10]}  Bh5 {[%clk 0:01:44]} 27. Nf1 {[%clk 0:00:07]}  Bxf3 {[%clk 0:01:43]} 28. gxf3 {[%clk 0:00:08]}  Bd6 {[%clk 0:01:43]} 29. Be3 {[%clk 0:00:06]}  Qh4 {[%clk 0:01:42]} 30. Kg2 {[%clk 0:00:05]}  Nc4 {[%clk 0:01:35]} 0-1


[Site "https://www.chess.com"]

[Event "Titled Tuesday Blitz December 7 2021"]
[White "Silva Lucena, Cristian"]
[Black "Enkhnar, Enkhbaatar"]
[WhiteFideId "2232588"]
[BlackFideId "4900324"]
[WhiteElo "2223"]
[BlackElo "2176"]
[Result "1/2-1/2"]
[Round "03"]
[TimeControl "180+1"]
[Date "2021.12.07"]
[WhiteClock "0:00:41"]
[BlackClock "0:00:17"]

1. c4 {[%clk 0:02:58]}  e6 {[%clk 0:02:56]} 2. g3 {[%clk 0:02:58]}  d5 {[%clk 0:02:56]} 3. Nf3 {[%clk 0:02:58]}  Nf6 {[%clk 0:02:56]} 4. Bg2 {[%clk 0:02:58]}  d4 {[%clk 0:02:48]} 5. O-O {[%clk 0:02:58]}  c5 {[%clk 0:02:48]} 6. e3 {[%clk 0:02:56]}  Nc6 {[%clk 0:02:41]} 7. exd4 {[%clk 0:02:52]}  Nxd4 {[%clk 0:02:33]} 8. Nxd4 {[%clk 0:02:49]}  Qxd4 {[%clk 0:02:32]} 9. d3 {[%clk 0:02:49]}  Be7 {[%clk 0:02:33]} 10. Nc3 {[%clk 0:02:48]}  O-O {[%clk 0:02:30]} 11. Nb5 {[%clk 0:02:45]}  Qd8 {[%clk 0:02:27]} 12. Bf4 {[%clk 0:02:45]}  Ne8 {[%clk 0:02:23]} 13. Qe2 {[%clk 0:02:28]}  a6 {[%clk 0:02:20]} 14. Nc3 {[%clk 0:02:27]}  Nd6 {[%clk 0:02:12]} 15. Bxd6 {[%clk 0:02:11]}  Qxd6 {[%clk 0:02:09]} 16. Rad1 {[%clk 0:02:10]}  Rb8 {[%clk 0:02:04]} 17. Qe3 {[%clk 0:02:03]}  Rd8 {[%clk 0:02:01]} 18. Ne4 {[%clk 0:02:00]}  Qd4 {[%clk 0:02:01]} 19. Qxd4 {[%clk 0:01:52]}  Rxd4 {[%clk 0:02:00]} 20. Nc3 {[%clk 0:01:53]}  Bf6 {[%clk 0:01:52]} 21. Ne4 {[%clk 0:01:46]}  b6 {[%clk 0:01:51]} 22. Nxf6+ {[%clk 0:01:42]}  gxf6 {[%clk 0:01:51]} 23. Rfe1 {[%clk 0:01:42]}  f5 {[%clk 0:01:41]} 24. Bf1 {[%clk 0:01:41]}  Bb7 {[%clk 0:01:40]} 25. Rb1 {[%clk 0:01:40]}  b5 {[%clk 0:01:19]} 26. b4 {[%clk 0:01:34]}  bxc4 {[%clk 0:01:17]} 27. dxc4 {[%clk 0:01:20]}  Be4 {[%clk 0:01:15]} 28. Rb2 {[%clk 0:01:17]}  Rxb4 {[%clk 0:01:06]} 29. Rxb4 {[%clk 0:01:17]}  cxb4 {[%clk 0:01:07]} 30. c5 {[%clk 0:01:17]}  a5 {[%clk 0:01:02]} 31. Rc1 {[%clk 0:01:16]}  Bc6 {[%clk 0:01:01]} 32. Bg2 {[%clk 0:01:15]}  Bxg2 {[%clk 0:00:57]} 33. Kxg2 {[%clk 0:01:15]}  Rd7 {[%clk 0:00:53]} 34. c6 {[%clk 0:01:16]}  Rc7 {[%clk 0:00:53]} 35. Rc5 {[%clk 0:01:16]}  a4 {[%clk 0:00:41]} 36. Rc4 {[%clk 0:01:14]}  b3 {[%clk 0:00:39]} 37. axb3 {[%clk 0:01:14]}  axb3 {[%clk 0:00:39]} 38. Rb4 {[%clk 0:01:14]}  Rxc6 {[%clk 0:00:38]} 39. Rxb3 {[%clk 0:01:15]}  Kg7 {[%clk 0:00:36]} 40. Rb8 {[%clk 0:01:13]}  Rc4 {[%clk 0:00:36]} 41. Ra8 {[%clk 0:01:13]}  h5 {[%clk 0:00:36]} 42. h4 {[%clk 0:01:11]}  f4 {[%clk 0:00:33]} 43. Rb8 {[%clk 0:01:09]}  fxg3 {[%clk 0:00:31]} 44. fxg3 {[%clk 0:01:10]}  Rc2+ {[%clk 0:00:28]} 45. Kf3 {[%clk 0:01:10]}  Rc3+ {[%clk 0:00:26]} 46. Kf2 {[%clk 0:01:08]}  Kf6 {[%clk 0:00:23]} 47. Rh8 {[%clk 0:01:08]}  Kg6 {[%clk 0:00:22]} 48. Rg8+ {[%clk 0:01:02]}  Kh6 {[%clk 0:00:18]} 49. Rg5 {[%clk 0:01:00]}  Rd3 {[%clk 0:00:17]} 50. Ke2 {[%clk 0:00:57]}  Rd5 {[%clk 0:00:18]} 51. Rg8 {[%clk 0:00:55]}  Rd4 {[%clk 0:00:18]} 52. Kf2 {[%clk 0:00:53]}  Rb4 {[%clk 0:00:17]} 53. Rg5 {[%clk 0:00:51]}  Rd4 {[%clk 0:00:17]} 54. Rg8 {[%clk 0:00:51]}  Rd5 {[%clk 0:00:17]} 55. Kf3 {[%clk 0:00:50]}  Kh7 {[%clk 0:00:17]} 56. Ra8 {[%clk 0:00:45]}  Kg7 {[%clk 0:00:18]} 57. Kf4 {[%clk 0:00:42]}  Rf5+ {[%clk 0:00:18]} 58. Ke3 {[%clk 0:00:42]}  Kf6 {[%clk 0:00:18]} 59. Rh8 {[%clk 0:00:42]}  Ke5 {[%clk 0:00:18]} 60. Ra8 {[%clk 0:00:41]}  Kf6 {[%clk 0:00:17]} 61. Rh8 {[%clk 0:00:41]}  Re5+ {[%clk 0:00:17]} 62. Kf3 {[%clk 0:00:41]}  Rf5+ {[%clk 0:00:17]} 63. Ke3 {[%clk 0:00:41]} 1/2-1/2


[Site "https://www.chess.com"]

[Event "Titled Tuesday Blitz December 7 2021"]
[White "Sipila, Vilka"]
[Black "Eynullayev, Atilla"]
[WhiteFideId "505455"]
[BlackFideId "13413570"]
[WhiteElo "2334"]
[BlackElo "1982"]
[Result "0-1"]
[Round "03"]
[TimeControl "180+1"]
[Date "2021.12.07"]
[WhiteClock "0:00:31"]
[BlackClock "0:00:17"]

1. b3 {[%clk 0:02:59]}  Nf6 {[%clk 0:02:59]} 2. Bb2 {[%clk 0:03:00]}  g6 {[%clk 0:02:59]} 3. Nf3 {[%clk 0:02:59]}  Bg7 {[%clk 0:03:00]} 4. g3 {[%clk 0:03:00]}  O-O {[%clk 0:03:00]} 5. Bg2 {[%clk 0:03:01]}  d5 {[%clk 0:03:00]} 6. c4 {[%clk 0:03:01]}  c6 {[%clk 0:03:01]} 7. O-O {[%clk 0:03:01]}  b6 {[%clk 0:03:01]} 8. d4 {[%clk 0:03:01]}  Bb7 {[%clk 0:03:02]} 9. Nc3 {[%clk 0:03:02]}  Nbd7 {[%clk 0:02:42]} 10. Re1 {[%clk 0:03:01]}  c5 {[%clk 0:02:33]} 11. dxc5 {[%clk 0:02:59]}  Nxc5 {[%clk 0:02:33]} 12. Ne5 {[%clk 0:02:58]}  d4 {[%clk 0:01:45]} 13. Nb5 {[%clk 0:02:56]}  Bxg2 {[%clk 0:01:44]} 14. Kxg2 {[%clk 0:02:57]}  Nfe4 {[%clk 0:01:35]} 15. Qxd4 {[%clk 0:02:53]}  Qxd4 {[%clk 0:01:29]} 16. Bxd4 {[%clk 0:02:53]}  a6 {[%clk 0:01:26]} 17. Nc7 {[%clk 0:02:38]}  Rad8 {[%clk 0:01:25]} 18. Nd5 {[%clk 0:02:20]}  e6 {[%clk 0:01:25]} 19. Ne7+ {[%clk 0:01:24]}  Kh8 {[%clk 0:01:24]} 20. N7c6 {[%clk 0:01:24]}  Rxd4 {[%clk 0:01:20]} 21. Nxd4 {[%clk 0:01:24]}  Bxe5 {[%clk 0:01:20]} 22. Rad1 {[%clk 0:01:25]}  Nc3 {[%clk 0:01:13]} 23. Rd2 {[%clk 0:01:15]}  N5e4 {[%clk 0:01:13]} 24. Rd3 {[%clk 0:01:14]}  Nxa2 {[%clk 0:01:13]} 25. Nc6 {[%clk 0:01:10]}  Bf6 {[%clk 0:01:07]} 26. Rd7 {[%clk 0:01:09]}  Nc5 {[%clk 0:01:04]} 27. Ra7 {[%clk 0:01:09]}  a5 {[%clk 0:00:51]} 28. Rd1 {[%clk 0:00:59]}  Kg7 {[%clk 0:00:50]} 29. Nxa5 {[%clk 0:00:49]}  Nc3 {[%clk 0:00:46]} 30. Rd6 {[%clk 0:00:42]}  bxa5 {[%clk 0:00:44]} 31. Rxa5 {[%clk 0:00:42]}  Nxb3 {[%clk 0:00:42]} 32. Ra7 {[%clk 0:00:41]}  Ne4 {[%clk 0:00:40]} 33. Rxe6 {[%clk 0:00:40]}  Nec5 {[%clk 0:00:35]} 34. Rc6 {[%clk 0:00:40]}  h5 {[%clk 0:00:23]} 35. Ra3 {[%clk 0:00:39]}  Be7 {[%clk 0:00:21]} 36. Rc7 {[%clk 0:00:37]}  Bd6 {[%clk 0:00:21]} 37. Rc6 {[%clk 0:00:37]}  Rd8 {[%clk 0:00:21]} 38. h3 {[%clk 0:00:36]}  Kf6 {[%clk 0:00:21]} 39. e3 {[%clk 0:00:36]}  Ke6 {[%clk 0:00:21]} 40. Rb6 {[%clk 0:00:34]}  Rc8 {[%clk 0:00:19]} 41. Kf3 {[%clk 0:00:33]}  Kd7 {[%clk 0:00:19]} 42. Ra7+ {[%clk 0:00:32]}  Rc7 {[%clk 0:00:19]} 43. Ra3 {[%clk 0:00:32]}  Nd2+ {[%clk 0:00:18]} 44. Ke2 {[%clk 0:00:31]}  Nxc4 {[%clk 0:00:18]} 45. Rxd6+ {[%clk 0:00:32]}  Nxd6 {[%clk 0:00:18]} 46. Rc3 {[%clk 0:00:31]}  Nce4 {[%clk 0:00:17]} 47. Ra3 {[%clk 0:00:30]}  Rc2+ {[%clk 0:00:17]} 48. Kd3 {[%clk 0:00:31]}  Rd2# {[%clk 0:00:17]} 0-1


[Site "https://www.chess.com"]

[Event "Titled Tuesday Blitz December 7 2021"]
[White "Solovchuk, Oleksiy"]
[Black "Holt, Conrad"]
[WhiteFideId "14115220"]
[BlackFideId "2034387"]
[WhiteElo "2295"]
[BlackElo "2586"]
[Result "0-1"]
[Round "03"]
[TimeControl "180+1"]
[Date "2021.12.07"]
[WhiteClock "0:00:34"]
[BlackClock "0:01:51"]

1. e4 {[%clk 0:03:00]}  e6 {[%clk 0:02:59]} 2. d4 {[%clk 0:03:00]}  d5 {[%clk 0:03:00]} 3. Nc3 {[%clk 0:02:57]}  Nf6 {[%clk 0:02:59]} 4. e5 {[%clk 0:02:48]}  Nfd7 {[%clk 0:02:59]} 5. f4 {[%clk 0:02:49]}  c5 {[%clk 0:03:00]} 6. Nf3 {[%clk 0:02:49]}  Nc6 {[%clk 0:03:00]} 7. Be3 {[%clk 0:02:49]}  cxd4 {[%clk 0:03:00]} 8. Nxd4 {[%clk 0:02:49]}  Bc5 {[%clk 0:03:01]} 9. Qd2 {[%clk 0:02:40]}  O-O {[%clk 0:02:59]} 10. Nce2 {[%clk 0:02:25]}  Qe7 {[%clk 0:02:57]} 11. O-O-O {[%clk 0:02:19]}  Bb4 {[%clk 0:02:41]} 12. c3 {[%clk 0:02:15]}  Ba5 {[%clk 0:02:37]} 13. h4 {[%clk 0:02:04]}  f6 {[%clk 0:02:30]} 14. Nxc6 {[%clk 0:01:56]}  bxc6 {[%clk 0:02:29]} 15. Nd4 {[%clk 0:01:56]}  Bb7 {[%clk 0:02:22]} 16. exf6 {[%clk 0:01:26]}  Nxf6 {[%clk 0:02:21]} 17. Bd3 {[%clk 0:01:15]}  c5 {[%clk 0:02:19]} 18. Nb3 {[%clk 0:01:09]}  Bb6 {[%clk 0:02:19]} 19. Bc2 {[%clk 0:01:02]}  a5 {[%clk 0:02:05]} 20. Kb1 {[%clk 0:01:02]}  a4 {[%clk 0:02:05]} 21. Nc1 {[%clk 0:01:02]}  a3 {[%clk 0:02:05]} 22. b3 {[%clk 0:01:01]}  Ba5 {[%clk 0:02:01]} 23. Qf2 {[%clk 0:00:47]}  d4 {[%clk 0:01:55]} 24. cxd4 {[%clk 0:00:44]}  Ne4 {[%clk 0:01:55]} 25. Bxe4 {[%clk 0:00:35]}  Bxe4+ {[%clk 0:01:55]} 26. Nd3 {[%clk 0:00:35]}  c4 {[%clk 0:01:55]} 27. bxc4 {[%clk 0:00:34]}  Rfb8+ {[%clk 0:01:51]} 28. Kc2 {[%clk 0:00:34]}  Rb2+ {[%clk 0:01:51]} 0-1


[Site "https://www.chess.com"]